[Event "1000GM Schev-C-C February 2024"]
[Site "Santa Clara"]
[Date "2024.02.26"]
[Round "5.3"]
[White "Pinzon, Jairo David"]
[Black "Wu, Jayden"]
[Result "0-1"]
[ECO "D00"]
[WhiteElo "2114"]
[BlackElo "1814"]
[Annotator "RC"]
[PlyCount "118"]
[EventDate "2024.02.13"]
[EventType "schev"]
[EventCountry "USA"]
[SourceTitle "playchess.com"]
[Source "ChessBase"]
[SourceQuality "1"]
[TimeControl "5400+30"]

1. d4 {[%emt 0:02:08]} Nf6 {[%emt 0:00:07]} 2. Bg5 {[%emt 0:00:05]} d5 {[%emt 0:00:06]} 3. e3 {[%emt 0:00:06]} c5 {[%emt 0:00:21]} 4. Bxf6 {[%emt 0:00:44]} gxf6 {[%emt 0:00:11]} 5. g3 {[%emt 0:03:21]} Nc6 {[%emt 0:00:34]} 6. Bg2 {[%emt 0:01:23]} Bf5 {[%emt 0:09:46]} 7. Ne2 {[%emt 0:01:06]} e6 {[%emt 0:01:14]} 8. O-O {[%emt 0:00:32]} Qb6 {[%emt 0:01:36]} 9. c4 {[%emt 0:07:35]} dxc4 {[%emt 0:10:08]} 10. Qa4 {[%emt 0:01:49]} Bd3 {[%emt 0:01:21]} 11. Nbc3 {[%emt 0:01:44]} O-O-O {[%emt 0:03:03]} 12. Rfd1 {[%emt 0:08:07]} cxd4 {[%emt 0:08:16]} 13. exd4 {[%emt 0:01:05]} Kb8 {[%emt 0:01:41]} 14. b3 {[%emt 0:11:39]} Bc2 {[%emt 0:11:34]} 15. Qxc4 {[%emt 0:04:13]} Bxd1 {[%emt 0:02:09]} 16. Rxd1 {[%emt 0:00:11]} Be7 {[%emt 0:12:45]} 17. Na4 {[%emt 0:11:22]} Qb4 {[%emt 0:03:29]} 18. Qd3 {[%emt 0:01:34]} Rd7 {[%emt 0:16:12]} 19. Qf3 {[%emt 0:02:04]} Rhd8 {[%emt 0:00:58]} 20. Qh5 {[%emt 0:07:06]} Nxd4 {[%emt 0:00:45]} 21. Nxd4 {[%emt 0:00:24]} Rxd4 {[%emt 0:00:08]} 22. Rf1 {[%emt 0:00:18]} Rf8 {[%emt 0:03:07]} 23. Qxh7 {[%emt 0:01:47]} Qb5 {[%emt 0:01:43]} 24. h4 {[%emt 0:04:01]} Qf5 {[%emt 0:01:23]} 25. Qh6 {[%emt 0:00:44]} Qg6 {[%emt 0:00:41]} 26. Qe3 {[%emt 0:01:19]} Rd7 {[%emt 0:00:43]} 27. Nc5 {[%emt 0:01:41]} Bxc5 {[%emt 0:00:17]} 28. Qxc5 {[%emt 0:00:07]} Rc8 {[%emt 0:00:14]} 29. Qb5 {[%emt 0:01:03]} Qd3 {[%emt 0:00:41]} 30. Qb4 {[%emt 0:00:42]} Qd4 {[%emt 0:00:29]} 31. Qb5 {[%emt 0:00:17]} f5 {[%emt 0:00:45]} 32. Bf3 {[%emt 0:03:18]} Rc5 {[%emt 0:01:54]} 33. Qe2 {[%emt 0:01:40]} Qd2 {[%emt 0:01:39]} 34. h5 {[%emt 0:02:12]} Qxe2 {[%emt 0:00:22]} 35. Bxe2 {[%emt 0:00:06]} Rd2 {[%emt 0:01:40]} 36. Bf3 {[%emt 0:00:17]} Rc8 {[%emt 0:00:31]} 37. Kg2 {[%emt 0:00:33]} e5 {[%emt 0:00:25]} 38. Rd1 {[%emt 0:01:13]} Rxa2 {[%emt 0:01:36]} 39. Bd5 {[%emt 0:02:19]} e4 {[%emt 0:01:56]} 40. g4 {[%emt 0:01:38]} e3 {[%emt 0:01:28]} 41. g5 {[%emt 0:00:12]} Rxf2+ {[%emt 0:00:13]} 42. Kg3 {[%emt 0:00:06]} f4+ {[%emt 0:00:59]} 43. Kg4 {[%emt 0:00:08]} e2 {[%emt 0:00:38]} 44. Re1 {[%emt 0:00:14]} f5+ {[%emt 0:00:35]} 45. gxf6 {[%emt 0:01:26]} Rf8 {[%emt 0:01:07]} 46. Bf3 {[%emt 0:04:45]} Rxf6 {[%emt 0:00:42]} 47. Rxe2 {[%emt 0:00:08]} Rxe2 {[%emt 0:01:48]} 48. Bxe2 {[%emt 0:00:06]} Kc7 {[%emt 0:00:00]} 49. Kg5 {[%emt 0:00:08]} f3 {[%emt 0:00:10]} 50. Bf1 {[%emt 0:00:36]} Rf8 {[%emt 0:00:20]} 51. h6 {[%emt 0:00:26]} Kd6 {[%emt 0:00:13]} 52. h7 {[%emt 0:00:26]} Kc5 {[%emt 0:00:15]} 53. Kg6 {[%emt 0:00:36]} Kb4 {[%emt 0:00:27]} 54. Kg7 {[%emt 0:00:06]} Rd8 {[%emt 0:00:07]} 55. Bc4 {[%emt 0:00:47]} f2 {[%emt 0:00:08]} 56. h8=Q {[%emt 0:00:40]} Rxh8 {[%emt 0:00:01]} 57. Kxh8 {[%emt 0:00:12]} a5 {[%emt 0:00:03]} 58. Be2 {[%emt 0:01:30]} Kxb3 {[%emt 0:00:07]} 59. Kg7 {[%emt 0:00:08]} a4 {[%emt 0:00:10]} 0-1

[Event "1000GM Schev-C-C February 2024"]
[Site "Santa Clara"]
[Date "2024.02.26"]
[Round "5.4"]
[White "Fan, Shengjie"]
[Black "Zapata Campos, Lidia Karen"]
[Result "0-1"]
[ECO "B45"]
[WhiteElo "1578"]
[BlackElo "2025"]
[Annotator "RC"]
[PlyCount "86"]
[EventDate "2024.02.13"]
[EventType "schev"]
[EventCountry "USA"]
[SourceTitle "playchess.com"]
[Source "ChessBase"]
[SourceQuality "1"]
[TimeControl "5400+30"]

1. e4 {[%emt 0:00:03]} c5 {[%emt 0:06:26]} 2. Nf3 {[%emt 0:00:05]} e6 {[%emt 0:00:25]} 3. d4 {[%emt 0:00:08]} cxd4 {[%emt 0:00:04]} 4. Nxd4 {[%emt 0:00:05]} Nf6 {[%emt 0:00:04]} 5. Nc3 {[%emt 0:00:19]} Nc6 {[%emt 0:00:20]} 6. Be3 {[%emt 0:01:09]} Bb4 {[%emt 0:00:25]} 7. Bd3 {[%emt 0:01:11]} d5 {[%emt 0:00:36]} 8. Bb5 {[%emt 0:19:31]} Bd7 {[%emt 0:02:00]} 9. Bxc6 {[%emt 0:05:08]} bxc6 {[%emt 0:01:05]} 10. exd5 {[%emt 0:01:07]} Bxc3+ {[%emt 0:09:53]} 11. bxc3 {[%emt 0:00:06]} cxd5 {[%emt 0:00:06]} 12. f3 {[%emt 0:07:16]} Qa5 {[%emt 0:06:46]} 13. Bd2 {[%emt 0:03:39]} O-O {[%emt 0:04:44]} 14. O-O {[%emt 0:01:11]} Rfc8 {[%emt 0:06:40]} 15. Re1 {[%emt 0:01:47]} Rc4 {[%emt 0:00:41]} 16. Nb3 {[%emt 0:04:29]} Qc7 {[%emt 0:01:02]} 17. Qe2 {[%emt 0:12:21]} a5 {[%emt 0:04:29]} 18. Rab1 {[%emt 0:04:49]} Ne8 {[%emt 0:01:32]} 19. Nd4 {[%emt 0:02:20]} Rb8 {[%emt 0:02:38]} 20. Rb3 {[%emt 0:10:00]} a4 {[%emt 0:01:27]} 21. Rb4 {[%emt 0:01:01]} Rbxb4 {[%emt 0:00:40]} 22. cxb4 {[%emt 0:00:18]} Rxd4 {[%emt 0:00:26]} 23. Rc1 {[%emt 0:03:10]} Rc4 {[%emt 0:00:49]} 24. Be1 {[%emt 0:01:14]} Nd6 {[%emt 0:04:06]} 25. Bg3 {[%emt 0:05:06]} Qb6+ {[%emt 0:01:17]} 26. Kh1 {[%emt 0:00:07]} Qxb4 {[%emt 0:00:30]} 27. Bxd6 {[%emt 0:00:53]} Qxd6 {[%emt 0:00:14]} 28. Rb1 {[%emt 0:00:18]} Rb4 {[%emt 0:01:07]} 29. Rxb4 {[%emt 0:00:26]} Qxb4 {[%emt 0:00:04]} 30. h3 {[%emt 0:00:05]} Qb1+ {[%emt 0:00:53]} 31. Kh2 {[%emt 0:00:06]} Qxa2 {[%emt 0:00:29]} 32. Qf2 {[%emt 0:00:43]} Qc4 {[%emt 0:01:09]} 33. Qa7 {[%emt 0:00:12]} Qc8 {[%emt 0:00:21]} 34. c3 {[%emt 0:00:24]} h6 {[%emt 0:00:24]} 35. Qa5 {[%emt 0:00:15]} Bc6 {[%emt 0:00:19]} 36. Qc5 {[%emt 0:00:57]} Qa6 {[%emt 0:00:38]} 37. Qd6 {[%emt 0:00:07]} a3 {[%emt 0:00:35]} 38. Qb8+ {[%emt 0:00:07]} Kh7 {[%emt 0:00:11]} 39. Qb1+ {[%emt 0:00:05]} g6 {[%emt 0:00:15]} 40. Qa1 {[%emt 0:00:13]} a2 {[%emt 0:00:20]} 41. f4 {[%emt 0:00:13]} Qe2 {[%emt 0:00:13]} 42. Qg1 {[%emt 0:00:41]} d4 {[%emt 0:00:11]} 43. cxd4 {[%emt 0:00:05]} a1=Q {[%emt 0:45:26]} 0-1

[Event "1000GM Schev-C-C February 2024"]
[Site "Santa Clara"]
[Date "2024.02.26"]
[Round "5.5"]
[White "Yuan, Serena"]
[Black "Montes Orozco, Miguel Angel"]
[Result "1/2-1/2"]
[ECO "E03"]
[WhiteElo "1771"]
[BlackElo "2178"]
[Annotator "RC"]
[PlyCount "90"]
[EventDate "2024.02.13"]
[EventType "schev"]
[EventCountry "USA"]
[SourceTitle "playchess.com"]
[Source "ChessBase"]
[SourceQuality "1"]
[TimeControl "5400+30"]

1. d4 {[%emt 0:00:04]} d5 {[%emt 0:00:13]} 2. Nf3 {[%emt 0:00:30]} Nf6 {[%emt 0:00:15]} 3. c4 {[%emt 0:00:05]} e6 {[%emt 0:00:10]} 4. g3 {[%emt 0:00:12]} dxc4 {[%emt 0:00:14]} 5. Qa4+ {[%emt 0:00:27]} Nbd7 {[%emt 0:00:22]} 6. Qxc4 {[%emt 0:00:08]} a6 {[%emt 0:00:05]} 7. Bg2 {[%emt 0:00:06]} b5 {[%emt 0:00:06]} 8. Qc6 {[%emt 0:00:10]} Rb8 {[%emt 0:02:33]} 9. Bf4 {[%emt 0:00:16]} Nd5 {[%emt 0:00:08]} 10. Bg5 {[%emt 0:00:11]} Bb7 {[%emt 0:03:36]} 11. Qxb7 {[%emt 0:06:31]} Rxb7 {[%emt 0:00:39]} 12. Bxd8 {[%emt 0:00:08]} Kxd8 {[%emt 0:00:03]} 13. Ng5 {[%emt 0:02:24]} Ke8 {[%emt 0:00:08]} 14. O-O {[%emt 0:01:00]} Be7 {[%emt 0:02:26]} 15. Ne4 {[%emt 0:01:34]} f6 {[%emt 0:01:29]} 16. Rc1 {[%emt 0:03:11]} Kf7 {[%emt 0:00:57]} 17. Nbd2 {[%emt 0:02:01]} Rc8 {[%emt 0:00:39]} 18. Nc3 {[%emt 0:03:24]} N7b6 {[%emt 0:00:37]} 19. Nxd5 {[%emt 0:00:39]} exd5 {[%emt 0:01:18]} 20. Rc6 {[%emt 0:01:57]} Rd8 {[%emt 0:01:45]} 21. Rac1 {[%emt 0:01:58]} Rd7 {[%emt 0:01:45]} 22. Bh3 {[%emt 0:02:42]} Rd6 {[%emt 0:00:39]} 23. Rxc7 {[%emt 0:01:56]} Rxc7 {[%emt 0:00:42]} 24. Rxc7 {[%emt 0:00:03]} Nc4 {[%emt 0:00:05]} 25. Nxc4 {[%emt 0:00:42]} dxc4 {[%emt 0:00:05]} 26. e3 {[%emt 0:00:37]} g6 {[%emt 0:00:09]} 27. Bc8 {[%emt 0:02:51]} a5 {[%emt 0:00:55]} 28. a4 {[%emt 0:04:27]} bxa4 {[%emt 0:01:41]} 29. Rxc4 {[%emt 0:00:34]} Rb6 {[%emt 0:01:15]} 30. Rxa4 {[%emt 0:00:23]} Rc6 {[%emt 0:00:19]} 31. Bb7 {[%emt 0:00:32]} Rc1+ {[%emt 0:00:05]} 32. Kg2 {[%emt 0:00:05]} Bb4 {[%emt 0:00:02]} 33. Bd5+ {[%emt 0:02:19]} Ke7 {[%emt 0:01:25]} 34. b3 {[%emt 0:01:02]} Kd6 {[%emt 0:00:05]} 35. Bc4 {[%emt 0:00:35]} h6 {[%emt 0:00:22]} 36. Ra2 {[%emt 0:00:28]} g5 {[%emt 0:00:38]} 37. e4 {[%emt 0:05:14]} Bc3 {[%emt 0:00:16]} 38. d5 {[%emt 0:00:46]} Bb4 {[%emt 0:02:12]} 39. f3 {[%emt 0:02:08]} Ke5 {[%emt 0:01:07]} 40. Kh3 {[%emt 0:03:40]} h5 {[%emt 0:00:40]} 41. Kg2 {[%emt 0:05:56]} Rc3 {[%emt 0:01:34]} 42. g4 {[%emt 0:07:49]} h4 {[%emt 0:02:13]} 43. Rb2 {[%emt 0:02:26]} Ba3 {[%emt 0:00:30]} 44. Rd2 {[%emt 0:02:00]} Bd6 {[%emt 0:00:06]} 45. Ra2 {[%emt 0:02:26]} Bb4 {[%emt 0:02:30]} 1/2-1/2